bitfinex-derivatives/quotes_BTCF0:USTF0_20250505
["timestamp","ask_amount","ask_price","bid_price","bid_amount"]
[1746421291126,0.4951123,94472.0,94471.0,0.2116945]
[1746421292535,0.4941123,94472.0,94471.0,0.2116945]
[1746421292738,0.4951123,94472.0,94471.0,0.2116945]
[1746421294137,0.4921123,94472.0,94471.0,0.2116945]
[1746421294338,0.4951123,94472.0,94471.0,0.2116945]
[1746421294837,0.4951123,94472.0,94471.0,0.2430945]
[1746421295537,0.4941123,94472.0,94471.0,0.2430945]
[1746421295739,0.4951123,94472.0,94471.0,0.2430945]
[1746421299044,0.2117317,94459.0,94458.0,0.2117161]
[1746421299241,0.3762117,94459.0,94458.0,0.2117161]
[1746421299934,0.4089117,94459.0,94458.0,0.2117161]
[1746421300441,0.4099117,94459.0,94458.0,0.2117161]
[1746421302637,0.4099117,94459.0,94458.0,0.2420161]
[1746421308946,0.4089117,94459.0,94458.0,0.2470161]
[1746421310336,0.4089117,94459.0,94458.0,0.2490161]
[1746421310636,0.4412117,94459.0,94458.0,0.2450161]
[1746421311546,0.4422117,94459.0,94458.0,0.2440161]
[1746421311747,0.4422117,94459.0,94458.0,0.2420161]
[1746421312244,0.4432117,94459.0,94458.0,0.2420161]
[1746421312445,0.8040117,94459.0,94458.0,0.2420161]
[1746421313348,0.7717117,94459.0,94458.0,0.2420161]
[1746421313545,0.42728,94459.0,94458.0,0.2420161]
[1746421313943,0.42828,94459.0,94458.0,0.2420161]
[1746421314245,0.42828,94459.0,94458.0,0.3620161]
[1746421316949,0.06748,94459.0,94458.0,0.3620161]
[1746421317547,0.2792014,94459.0,94458.0,0.3620161]
[1746421322741,0.3101014,94459.0,94458.0,0.3620161]
[1746421322941,0.3101014,94459.0,94458.0,0.1503]
[1746421323242,0.3601014,94459.0,94458.0,0.2420237]
[1746421323442,0.3930014,94459.0,94458.0,0.2420237]
[1746421324052,0.3601014,94459.0,94458.0,0.2420237]
[1746421326354,0.3601014,94459.0,94458.0,0.3620237]
[1746421327245,0.3601014,94459.0,94458.0,0.2420237]
[1746421327646,0.4213014,94459.0,94458.0,0.2420237]
[1746421330457,0.3908014,94459.0,94458.0,0.2420237]
[1746421331157,0.7516014,94459.0,94458.0,0.2420237]
[1746421335957,0.8516014,94459.0,94458.0,0.2420237]
[1746421340065,0.4908014,94459.0,94458.0,0.2420237]
[1746421340252,0.8516014,94459.0,94458.0,0.2420237]
[1746421343075,0.8516014,94459.0,94458.0,0.3620237]
[1746421344174,0.8516014,94459.0,94458.0,0.2420237]
[1746421345267,0.8516014,94459.0,94458.0,0.3620237]
[1746421346171,0.8516014,94459.0,94458.0,0.2420237]
[1746421347077,0.8516014,94459.0,94458.0,0.3620237]
[1746421349275,0.8207014,94459.0,94458.0,0.3620237]
[1746421349469,0.8207014,94459.0,94458.0,0.37756535]
[1746421350076,0.8207014,94459.0,94458.0,0.25756535]
[1746421350575,0.60898,94459.0,94458.0,0.25756535]
[1746421350772,0.06748,94459.0,94458.0,0.25756535]
[1746421351276,0.06748,94459.0,94458.0,0.37756535]
[1746421351965,0.003,94459.0,94458.0,0.37756535]
[1746421352171,0.06768,94459.0,94458.0,0.37756535]
[1746421358977,0.06768,94459.0,94458.0,0.73836535]
[1746421359478,0.2794014,94459.0,94458.0,0.73836535]
[1746421362075,0.2794014,94459.0,94458.0,0.16584165]
[1746421362580,0.2794014,94459.0,94458.0,0.1503]
[1746421362971,0.3443014,94459.0,94458.0,0.1503]
[1746421363679,0.3443014,94459.0,94458.0,0.3620237]
[1746421364380,0.3443014,94459.0,94458.0,0.1503]
[1746421364772,0.3443014,94459.0,94458.0,0.3620237]
[1746421365081,0.3443014,94459.0,94458.0,0.2420237]
[1746421367688,0.3443014,94459.0,94458.0,0.0303]
[1746421368174,0.2796214,94459.0,94458.0,0.2420237]
[1746421368373,0.3443014,94459.0,94458.0,0.2420237]
[1746421368572,0.3443014,94459.0,94458.0,0.0303]
[1746421368775,0.2117259,94457.0,94456.0,0.00134]
[1746421369179,0.1,94454.0,94453.0,0.2117339]
[1746421369383,0.4608,94454.0,94453.0,0.2117339]
[1746421370389,0.4618,94454.0,94453.0,0.2117339]
[1746421370782,0.7061326,94454.0,94453.0,0.2117339]
[1746421375389,0.5735326,94454.0,94453.0,0.2117339]
[1746421375893,0.5725326,94454.0,94453.0,0.2117339]
[1746421376080,0.5735326,94454.0,94453.0,0.2117339]
[1746421376994,0.5725326,94454.0,94453.0,0.2117339]
[1746421377184,0.2127326,94454.0,94453.0,0.2117339]
[1746421377589,0.2433326,94454.0,94453.0,0.2117339]
[1746421378297,0.2433326,94454.0,94453.0,0.3317339]
[1746421383288,0.001,94454.0,94453.0,0.3317339]
[1746421383490,0.0656,94454.0,94453.0,0.3317339]
[1746421387098,0.0656,94454.0,94453.0,0.3391239]
[1746421388193,0.0656,94454.0,94453.0,0.3404639]
[1746421414628,0.0656,94454.0,94453.0,0.4030639]
[1746421418618,0.0656,94454.0,94453.0,0.7638639]
[1746421423829,0.0656,94454.0,94453.0,0.4030639]
[1746421427226,0.0656,94454.0,94453.0,0.4357639]
[1746421445845,0.0077613,94472.0,94467.0,0.2117035]
[1746421446051,0.06416,94468.0,94467.0,0.2117035]
[1746421446357,0.06416,94468.0,94467.0,0.3317035]
[1746421446757,0.06416,94468.0,94467.0,0.3634035]
[1746421447252,0.06416,94468.0,94467.0,0.3946035]
[1746421447457,0.06616,94468.0,94467.0,0.3946035]
[1746421447654,0.07016,94468.0,94467.0,0.3946035]
[1746421448655,0.07016,94468.0,94467.0,0.4020035]
[1746421449856,0.07016,94468.0,94467.0,0.4033635]
[1746421450459,0.06816,94468.0,94467.0,0.4033635]
[1746421451256,0.06616,94468.0,94467.0,0.4033635]
[1746421451956,0.06416,94468.0,94467.0,0.4043635]
[1746421452762,0.09676,94468.0,94467.0,0.4043635]
[1746421458174,0.09676,94468.0,94467.0,0.4033635]
[1746421458359,0.09676,94468.0,94467.0,0.4043635]
[1746421458971,0.6692613,94468.0,94467.0,0.12976]
[1746421459264,0.2117371,94452.0,94442.0,0.4137397]
[1746421459461,0.06416,94452.0,94449.0,0.0529356]
[1746421459770,0.06316,94452.0,94451.0,0.6254738]
[1746421460360,0.12416,94452.0,94451.0,0.6254738]
[1746421460559,0.12516,94452.0,94451.0,0.6254738]
[1746421460964,0.12616,94452.0,94451.0,0.6254738]
[1746421461156,0.12616,94452.0,94451.0,0.6913738]
[1746421461573,0.12616,94452.0,94451.0,0.3305738]
[1746421462764,0.12516,94452.0,94451.0,0.3305738]
[1746421462961,0.12616,94452.0,94451.0,0.3305738]
[1746421463470,0.12516,94452.0,94451.0,0.3305738]
[1746421463668,0.12616,94452.0,94451.0,0.3305738]
[1746421464368,0.12616,94452.0,94451.0,0.2978738]
[1746421468969,0.3378971,94452.0,94451.0,0.2978738]
[1746421470470,0.3368971,94452.0,94451.0,0.2978738]
[1746421470673,0.3378971,94452.0,94451.0,0.2978738]
[1746421471572,0.12616,94452.0,94451.0,0.2978738]
[1746421475777,0.12516,94452.0,94451.0,0.2978738]
[1746421476075,0.12616,94452.0,94451.0,0.2978738]
[1746421478175,0.12616,94452.0,94451.0,0.4178738]
[1746421479276,0.09576,94452.0,94451.0,0.2978738]
[1746421481073,0.09576,94452.0,94451.0,0.4178738]
[1746421482080,0.09576,94452.0,94451.0,0.2978738]
[1746421482881,0.09476,94452.0,94451.0,0.2978738]
[1746421483079,0.09576,94452.0,94451.0,0.2978738]
[1746421485087,0.09576,94452.0,94451.0,0.4178738]
[1746421487386,0.09476,94452.0,94451.0,0.4178738]
[1746421487587,0.09576,94452.0,94451.0,0.4178738]
[1746421488585,0.09576,94452.0,94451.0,0.4480738]
[1746421492088,0.09476,94452.0,94451.0,0.4480738]
[1746421492289,0.09576,94452.0,94451.0,0.4480738]
[1746421495190,0.09476,94452.0,94451.0,0.4480738]
[1746421495490,0.09576,94452.0,94451.0,0.4480738]
[1746421496179,0.09576,94452.0,94451.0,0.3280738]
[1746421496582,0.06516,94452.0,94451.0,0.3280738]
[1746421497185,0.06516,94452.0,94451.0,0.4480738]
[1746421502593,0.002,94452.0,94451.0,0.4480738]
[1746421502783,0.001,94452.0,94451.0,0.4804738]
[1746421502987,0.002,94452.0,94451.0,1.9804738]
[1746421504095,0.001,94452.0,94451.0,1.9804738]
[1746421504894,0.0642,94460.0,94459.0,0.2117214]
[1746421505096,0.0642,94460.0,94459.0,0.5725214]
[1746421505887,0.0642,94460.0,94459.0,0.6677214]
[1746421506087,0.0682,94460.0,94459.0,0.7877214]
[1746421509099,0.0662,94460.0,94459.0,0.7897214]
[1746421509398,0.0642,94460.0,94459.0,0.7917214]
[1746421513306,0.0642,94460.0,94459.0,0.7907214]
[1746421513809,0.0642,94460.0,94459.0,0.7897214]
[1746421524213,0.0642,94460.0,94459.0,0.7877214]
[1746421524417,0.0642,94460.0,94459.0,0.7897214]
[1746421533321,0.0642,94460.0,94459.0,0.7877214]
[1746421533527,0.0642,94460.0,94459.0,0.7897214]
[1746421533915,0.0642,94460.0,94459.0,0.7887214]
[1746421534121,0.0642,94460.0,94459.0,0.7897214]
[1746421536221,0.0642,94460.0,94459.0,0.7887214]
[1746421536411,0.0642,94460.0,94459.0,0.7897214]
[1746421540026,0.0642,94460.0,94459.0,0.7574214]
[1746421540225,0.0642,94460.0,94459.0,0.7584214]
[1746421541321,0.0642,94460.0,94459.0,0.7574214]
[1746421542224,0.0642,94460.0,94459.0,0.3966214]
[1746421542718,0.0642,94460.0,94459.0,0.7564214]
[1746421542923,0.0642,94460.0,94459.0,0.7574214]
[1746421543836,0.0642,94460.0,94459.0,0.7564214]
[1746421544035,0.0963,94460.0,94459.0,0.7564214]
[1746421544232,0.0963,94460.0,94459.0,0.7574214]
[1746421545033,0.0963,94460.0,94459.0,0.7564214]
[1746421545237,0.0963,94460.0,94459.0,0.7574214]
[1746421546127,0.0963,94460.0,94459.0,0.7564214]
[1746421546328,0.0963,94460.0,94459.0,0.7574214]
[1746421546740,0.0963,94460.0,94459.0,0.7564214]
[1746421546939,0.0963,94460.0,94459.0,0.7574214]
[1746421547129,0.0963,94460.0,94459.0,0.7564214]
[1746421547427,0.0963,94460.0,94459.0,0.7574214]
[1746421551641,0.0321,94460.0,94459.0,0.7574214]
[1746421551840,0.09622,94460.0,94459.0,0.7574214]
[1746421552233,0.09622,94460.0,94459.0,0.6374214]
[1746421556326,0.09622,94460.0,94459.0,0.6364214]
[1746421556531,0.09622,94460.0,94459.0,0.6354214]
[1746421564441,0.06412,94460.0,94459.0,0.6354214]
[1746421570158,0.06412,94460.0,94459.0,0.7554214]
[1746421571165,0.06412,94460.0,94459.0,0.6354214]
[1746421571464,0.06512,94460.0,94459.0,0.6354214]
[1746421572069,0.06512,94460.0,94459.0,0.7554214]
[1746421572670,0.06612,94460.0,94459.0,0.7554214]
[1746421573269,0.06512,94460.0,94459.0,0.7554214]
[1746421573569,0.06412,94460.0,94459.0,0.7554214]
[1746421575665,0.06512,94460.0,94459.0,0.7554214]
[1746421576367,0.06612,94460.0,94459.0,0.7554214]
[1746421577567,0.06512,94460.0,94459.0,0.7554214]
[1746421578869,0.06412,94460.0,94459.0,0.7554214]
[1746421580374,0.06512,94460.0,94459.0,0.7554214]
[1746421582471,0.06412,94460.0,94459.0,0.7554214]
[1746421584172,0.06512,94460.0,94459.0,0.7554214]
[1746421585677,0.06612,94460.0,94459.0,0.7554214]
[1746421587565,0.06512,94460.0,94459.0,0.7554214]
[1746421588975,0.06412,94460.0,94459.0,0.7554214]
[1746421605380,0.06408,94476.0,94475.0,0.2116856]
[1746421605582,0.06408,94476.0,94475.0,0.5724856]
[1746421605783,0.09598,94484.0,94483.0,0.2116677]
[1746421605980,0.09598,94484.0,94483.0,0.5724677]
[1746421606176,0.09598,94484.0,94483.0,0.6924677]
[1746421607081,0.09598,94484.0,94483.0,0.70329792]
[1746421607285,0.0409,94484.0,94483.0,0.70329792]
[1746421607486,0.06408,94510.0,94493.0,0.2116453]
[1746421607681,0.0319,94509.0,94505.0,0.2116184]
[1746421607985,0.0319,94509.0,94505.0,0.5724184]
[1746421608184,0.0319,94509.0,94505.0,0.6924184]
[1746421609686,0.003,94506.0,94505.0,0.6924184]
[1746421610079,0.007,94506.0,94505.0,0.6924184]
[1746421612180,0.007,94506.0,94505.0,0.5724184]
[1746421612383,0.068,94506.0,94505.0,0.5724184]
[1746421619288,0.068,94506.0,94505.0,0.6029184]
[1746421621087,0.0374,94506.0,94505.0,0.6029184]
[1746421622092,0.0374,94506.0,94505.0,0.7229184]
[1746421623688,0.0015,94520.0,94519.0,0.211587]
[1746421623993,0.0015,94520.0,94519.0,0.572387]
[1746421624192,0.0015,94520.0,94519.0,0.692387]
[1746421624397,0.0015,94520.0,94519.0,0.725487]
[1746421624893,0.0035,94520.0,94519.0,0.725487]
[1746421625393,0.0025,94520.0,94519.0,0.725487]
[1746421625597,0.0025,94520.0,94519.0,0.758087]
[1746421625987,0.0025,94520.0,94519.0,0.76847193]
[1746421629399,0.0025,94520.0,94519.0,0.76750389]
[1746421629898,0.0025,94520.0,94519.0,0.73490389]
[1746421630201,0.0025,94520.0,94519.0,0.22100389]
[1746421630202,0.2140848,94520.0,94519.0,0.22100389]
[1746421631293,0.2784848,94520.0,94519.0,0.22100389]
[1746421632102,0.0669,94520.0,94519.0,0.22100389]
[1746421632596,0.0669,94520.0,94519.0,0.21061896]
[1746421632797,0.0991,94520.0,94519.0,0.21061896]
[1746421633593,0.0991,94520.0,94519.0,0.22141763]
[1746421651602,0.0672,94520.0,94519.0,0.22141763]
[1746421652202,0.0672,94520.0,94519.0,0.28631763]
[1746421654418,0.0347,94520.0,94519.0,0.28631763]
[1746421657315,0.0025,94520.0,94519.0,0.28631763]
[1746421685836,0.0025,94520.0,94519.0,0.64711763]
[1746421702851,0.0025,94520.0,94519.0,0.28631763]
[1746421703047,0.0025,94520.0,94519.0,0.64711763]
[1746421721166,0.0025,94520.0,94519.0,0.22141763]
[1746421722260,0.0657,94520.0,94519.0,0.22141763]
[1746421722758,0.0657,94520.0,94519.0,0.25391763]
[1746421722954,0.0657,94520.0,94519.0,0.28621763]
[1746421726065,0.0657,94520.0,94519.0,0.64701763]
[1746421732282,0.0657,94520.0,94519.0,0.58221763]
[1746421732975,0.0343,94520.0,94519.0,0.58221763]
[1746421744192,0.0343,94520.0,94519.0,0.22141763]
[1746421744377,0.0343,94520.0,94519.0,0.58221763]
[1746421757700,0.3901,94520.0,94504.0,0.0529045]
[1746421757999,0.2116204,94505.0,94504.0,0.2116184]
[1746421758412,0.3076204,94505.0,94504.0,0.2116184]
[1746421758806,0.096,94505.0,94504.0,0.2146184]
[1746421759204,0.0312,94505.0,94504.0,0.28659825]
[1746421759406,0.0312,94505.0,94504.0,0.31769825]
[1746421759707,0.0312,94505.0,94504.0,0.32069825]
[1746421760911,0.0312,94505.0,94504.0,0.31969825]
[1746421761299,0.0312,94505.0,94504.0,0.31869825]
[1746421762812,0.0312,94505.0,94504.0,0.31769825]
[1746421767217,0.0312,94505.0,94504.0,0.67849825]
[1746421777522,0.0312,94505.0,94504.0,0.67749825]
[1746421778322,0.0312,94505.0,94504.0,0.67649825]
[1746421779124,0.0312,94505.0,94504.0,0.67549825]
[1746421781926,0.2428184,94505.0,94504.0,0.64439825]
[1746421782125,0.0312,94505.0,94504.0,0.64439825]
[1746421821252,0.2116273,94501.0,94500.0,0.21321669]
[1746421821454,0.2757073,94501.0,94500.0,0.00158709]
[1746421821655,0.2757073,94501.0,94500.0,0.21321669]
[1746421822066,0.3476473,94501.0,94500.0,0.00158709]
[1746421822275,0.4117273,94501.0,94500.0,0.00158709]
[1746421823366,0.4117273,94501.0,94500.0,0.21321669]
[1746421825266,0.4117273,94501.0,94500.0,0.00158709]
[1746421825457,0.4117273,94501.0,94500.0,0.21321669]
[1746421833168,0.3059073,94501.0,94500.0,0.21321669]
[1746421835971,0.6667073,94501.0,94500.0,0.21321669]
[1746421841665,0.6677073,94501.0,94500.0,0.24421669]
[1746421841866,0.6677073,94501.0,94500.0,0.27621669]
[1746421842075,0.6667073,94501.0,94500.0,0.27621669]
[1746421842376,0.6677073,94501.0,94500.0,0.27621669]
[1746421844274,0.6375073,94501.0,94500.0,0.27621669]
[1746421845375,0.6365073,94501.0,94500.0,0.27621669]
[1746421845577,0.2767073,94501.0,94500.0,0.27621669]
[1746421845975,0.2767073,94501.0,94500.0,0.27721669]
[1746421846174,0.3093073,94501.0,94500.0,0.27721669]
[1746421848270,0.3083073,94501.0,94500.0,0.27921669]
[1746421848676,0.3083073,94501.0,94500.0,0.27821669]
[1746421848877,0.3083073,94501.0,94500.0,0.27921669]
[1746421850679,0.3083073,94501.0,94500.0,0.2776296]
[1746421850978,0.3583073,94501.0,94500.0,0.2776296]
[1746421865996,0.36638132,94501.0,94500.0,0.2776296]
[1746421905117,0.15475402,94501.0,94500.0,0.2776296]
[1746421909519,0.36638132,94501.0,94500.0,0.2776296]
[1746421917829,0.15475402,94501.0,94500.0,0.2776296]
[1746421919633,0.36638132,94501.0,94500.0,0.2776296]
[1746421920624,0.15475402,94501.0,94500.0,0.2776296]
[1746421925433,0.05,94501.0,94500.0,0.2776296]
[1746421925627,0.06404,94501.0,94500.0,0.6384296]
[1746421925829,0.06080599,94520.0,94516.0,0.2115938]
[1746421926028,0.72189059,94517.0,94516.0,0.2115938]
[1746421926637,0.72189059,94517.0,94516.0,0.2750938]
[1746421927029,0.72289059,94517.0,94516.0,0.2750938]
[1746421927431,0.73099796,94517.0,94516.0,0.2750938]
[1746421927633,0.76329796,94517.0,94516.0,0.28572679]
[1746421929536,0.76229796,94517.0,94516.0,0.28572679]
[1746421929736,0.76329796,94517.0,94516.0,0.28572679]
[1746421930230,0.46624737,94517.0,94516.0,0.28572679]
[1746421931538,0.10544737,94517.0,94516.0,0.28572679]
[1746421936639,0.10444737,94517.0,94516.0,0.28772679]
[1746421937026,0.10444737,94517.0,94516.0,0.28972679]
[1746421937632,0.10444737,94517.0,94516.0,0.28772679]
[1746421937837,0.10444737,94517.0,94516.0,0.28972679]
[1746421938632,0.10444737,94517.0,94516.0,0.28772679]
[1746421938836,0.10444737,94517.0,94516.0,0.28972679]
[1746421939437,0.25199887,94517.0,94516.0,0.004]
[1746421939737,0.42939887,94517.0,94516.0,0.004]
[1746421939930,0.42939887,94517.0,94516.0,0.2135938]
[1746421940240,0.37939887,94517.0,94516.0,0.22409859]
[1746421940431,0.37939887,94517.0,94516.0,0.22609859]
[1746421940841,0.37939887,94517.0,94516.0,0.29089859]
[1746421943141,0.37939887,94517.0,94516.0,0.2803938]
[1746421948931,0.47939887,94517.0,94516.0,0.004]
[1746421949235,0.2116212,94507.0,94506.0,0.2116081]
[1746421950040,0.1490034,94508.0,94503.0,0.0626]
[1746421950238,0.1490034,94508.0,94381.0,1.0573794]
[1746421950239,0.5128,94507.0,94465.0,0.3608]
[1746421950439,0.2116565,94488.0,94487.0,0.0305]
[1746421950643,0.2116587,94487.0,94486.0,0.211659]
[1746421950946,0.2746587,94487.0,94486.0,0.211659]
[1746421951147,0.2716587,94487.0,94486.0,0.211659]
[1746421951445,0.2686587,94487.0,94486.0,0.211659]
[1746421951845,0.2686587,94487.0,94486.0,0.212659]
[1746421952548,0.2696587,94487.0,94486.0,0.212659]
[1746421953246,0.2686587,94487.0,94486.0,0.212659]
[1746421953439,0.2696587,94487.0,94486.0,0.212659]
[1746421954348,0.2696587,94487.0,94486.0,0.211659]
[1746421958450,0.2998587,94487.0,94486.0,0.211659]
[1746421959249,0.3998587,94487.0,94486.0,0.211659]
[1746421960956,0.7606587,94487.0,94486.0,0.211659]
[1746421963854,0.6002587,94487.0,94486.0,0.211659]
[1746421965555,0.3946,94487.0,94486.0,0.211659]
[1746421965753,0.6062587,94487.0,94486.0,0.211659]
[1746421965952,0.2454587,94487.0,94486.0,0.211659]
[1746421966153,0.6062587,94487.0,94486.0,0.211659]
[1746421966946,0.2454587,94487.0,94486.0,0.211659]
[1746421967354,0.6062587,94487.0,94486.0,0.211659]
[1746421969351,0.6062587,94487.0,94486.0,0.243559]
[1746421971252,0.052918,94481.0,94475.0,0.05397968]
[1746421971564,0.6724766,94479.0,94478.0,0.2737786]
[1746421971954,0.7048766,94479.0,94478.0,0.2737786]
[1746421972354,0.7048766,94479.0,94478.0,0.28448807]
[1746421973863,0.7048766,94479.0,94478.0,0.28648807]
[1746421974160,0.7048766,94479.0,94478.0,0.28748807]
[1746421974360,0.6048766,94479.0,94478.0,0.28748807]
[1746421975160,0.6048766,94479.0,94478.0,0.003]
[1746421975351,0.2117013,94468.0,94458.0,0.0332]
[1746421975556,0.7865013,94468.0,94462.0,0.01082942]
[1746421975861,0.7865013,94468.0,94463.0,0.0332]
[1746421976065,0.7865013,94468.0,94464.0,0.03]
[1746421976467,0.7865013,94468.0,94467.0,0.00558785]
[1746421976665,0.7865013,94468.0,94467.0,0.21729135]
[1746421976863,0.2117349,94453.0,94452.0,0.2117362]
[1746421977067,0.2757349,94453.0,94452.0,0.28569981]
[1746421977966,0.2757349,94453.0,94452.0,0.28869981]
[1746421978165,0.2757349,94453.0,94452.0,0.2779362]
[1746421978365,0.2767349,94453.0,94452.0,0.2779362]
[1746421978771,0.2767349,94453.0,94452.0,0.0662]
[1746421978966,0.2767349,94453.0,94452.0,0.2450371]
[1746421979574,0.2787349,94453.0,94452.0,0.2420371]
[1746421979771,0.3099349,94453.0,94452.0,0.2420371]
[1746421979972,0.3079349,94453.0,94452.0,0.2420371]
[1746421980272,0.3099349,94453.0,94452.0,0.2420371]
[1746421984475,0.067,94453.0,94452.0,0.2420371]
[1746421985275,0.067,94453.0,94452.0,0.3620371]
[1746421986679,0.2787349,94453.0,94452.0,0.3620371]
[1746421986877,0.067,94453.0,94452.0,0.3620371]
[1746421987778,0.2787349,94453.0,94452.0,0.3620371]
[1746421988373,0.2787349,94453.0,94452.0,0.1503]
[1746421988575,0.3787349,94453.0,94452.0,0.1503]
[1746421989077,0.4287349,94453.0,94452.0,0.0303]
[1746421989279,0.4889349,94453.0,94452.0,0.0303]
[1746421989477,0.2117461,94448.0,94447.0,0.0323]
[1746421989668,0.7225461,94448.0,94447.0,0.0323]
[1746421990476,0.2117483,94447.0,94446.0,0.03458826]
[1746421990679,0.2117483,94447.0,94446.0,0.06608826]
[1746421990875,0.2719483,94447.0,94446.0,0.06608826]
[1746421995580,0.6327483,94447.0,94446.0,0.06608826]
[1746421995883,0.6666483,94447.0,94446.0,0.06608826]
[1746421998187,0.6975483,94447.0,94446.0,0.06608826]
[1746422001085,0.6975483,94447.0,94446.0,0.0645]
[1746422001490,0.7302483,94447.0,94446.0,0.0645]
[1746422002195,0.2118179,94416.0,94415.0,0.00264793]
[1746422002383,0.6366179,94416.0,94415.0,0.00264793]
[1746422002887,0.64453652,94416.0,94415.0,0.00264793]
[1746422003189,0.64453652,94416.0,94415.0,0.01322827]
[1746422003687,0.64453652,94416.0,94415.0,0.00264793]
[1746422004285,0.64453652,94416.0,94415.0,0.00864793]
[1746422004994,0.64553652,94416.0,94415.0,0.00864793]
[1746422005184,0.2118515,94401.0,94399.0,0.37163016]
[1746422005389,0.064,94401.0,94400.0,0.3435538]
[1746422006285,0.064,94401.0,94400.0,0.4635538]
[1746422006586,0.2758515,94401.0,94400.0,0.4953538]
[1746422007779,0.2758515,94401.0,94400.0,0.4963538]
[1746422008687,0.2758515,94401.0,94392.0,0.0529678]
[1746422008688,0.2118852,94386.0,94381.0,0.00158929]
[1746422008991,0.2118852,94386.0,94383.0,0.0317]
[1746422008992,0.2758852,94386.0,94383.0,0.0317]
[1746422009183,0.3958852,94386.0,94383.0,0.0317]
[1746422010095,0.2758852,94386.0,94384.0,0.032]
[1746422010488,0.2758852,94386.0,94385.0,0.03365948]
[1746422010689,0.064,94386.0,94385.0,0.08663128]
[1746422010879,0.085064,94399.0,94386.0,0.2118796]
[1746422011083,0.2118785,94389.0,94388.0,0.5726796]
[1746422011278,0.052959,94408.0,94388.0,0.3608]
[1746422011484,0.2118649,94396.0,94395.0,0.2118605]
[1746422011979,0.2758649,94396.0,94395.0,0.2118605]
[1746422012183,0.2758649,94396.0,94395.0,0.3318605]
[1746422012595,0.064,94396.0,94395.0,0.12]
[1746422012885,0.7406627,94396.0,94395.0,0.12]
[1746422013085,0.7406627,94396.0,94389.0,0.0959]
[1746422013086,0.2118717,94392.0,94389.0,0.0959]
[1746422013292,0.2118762,94390.0,94389.0,0.3077764]
[1746422014083,0.2118762,94390.0,94389.0,0.4277764]
[1746422014490,0.2118762,94390.0,94389.0,0.2159]
[1746422015089,0.0321,94391.0,94390.0,0.2118762]
[1746422015383,0.0321,94391.0,94389.0,0.12]
[1746422015590,0.2426762,94390.0,94389.0,0.12]
[1746422015993,0.2734762,94390.0,94389.0,0.12]
[1746422016188,0.2734762,94390.0,94385.0,0.00105948]
[1746422016189,0.2118852,94386.0,94385.0,0.00105948]
[1746422016599,0.2118852,94386.0,94385.0,0.06545948]
[1746422017805,0.2128852,94386.0,94385.0,0.06545948]
[1746422018100,0.2148852,94386.0,94385.0,0.06545948]
[1746422018994,0.21469893,94386.0,94385.0,0.06545948]
[1746422019189,0.21469893,94386.0,94385.0,0.03395948]
[1746422019395,0.21469893,94386.0,94376.0,0.0837766]
[1746422019396,0.2119346,94364.0,94363.0,0.0644]
[1746422019598,0.2759346,94364.0,94363.0,0.0644]
[1746422019796,0.064,94364.0,94363.0,0.2763368]
[1746422020199,0.28371201,94364.0,94363.0,0.3963368]
[1746422020501,0.28371201,94364.0,94363.0,0.4023368]
[1746422021007,0.28371201,94364.0,94363.0,0.4003368]
[1746422021192,0.28571201,94364.0,94363.0,0.3963368]
[1746422022098,0.28671201,94364.0,94363.0,0.2763368]
[1746422022294,0.01077741,94364.0,94363.0,0.2763368]
[1746422022495,0.07481741,94364.0,94363.0,0.2763368]
[1746422023307,0.07381741,94364.0,94363.0,0.3963368]
[1746422023695,0.07281741,94364.0,94363.0,0.3963368]
[1746422023901,0.07181741,94364.0,94363.0,0.3993368]
[1746422024408,0.28375201,94364.0,94363.0,0.3993368]
[1746422029214,0.28375201,94364.0,94363.0,0.3983368]
[1746422029415,0.28375201,94364.0,94363.0,0.3993368]
[1746422029714,0.28375201,94364.0,94363.0,0.3983368]
[1746422029915,0.28375201,94364.0,94363.0,0.3993368]
[1746422030216,0.28375201,94364.0,94363.0,0.3973368]
[1746422030711,0.07181741,94364.0,94363.0,0.3973368]
[1746422031516,0.28375201,94364.0,94363.0,0.3973368]
[1746422032017,0.07181741,94364.0,94363.0,0.3973368]
[1746422033609,0.10491741,94364.0,94363.0,0.3973368]
[1746422038421,0.31685201,94364.0,94363.0,0.3973368]
[1746422038816,0.10491741,94364.0,94363.0,0.3963368]
[1746422039018,0.10591741,94364.0,94363.0,0.3973368]
[1746422039414,0.10491741,94364.0,94363.0,0.3973368]
[1746422040121,0.10591741,94364.0,94363.0,0.3973368]
[1746422040321,0.10591741,94364.0,94363.0,0.3963368]
[1746422040529,0.10591741,94364.0,94363.0,0.3973368]
[1746422040830,0.10491741,94364.0,94363.0,0.3973368]
[1746422042621,0.10491741,94364.0,94363.0,0.3983368]
[1746422042825,0.31685201,94364.0,94363.0,0.123]
[1746422043018,0.31685201,94364.0,94363.0,0.3349368]
[1746422043327,0.31785201,94364.0,94363.0,0.2119368]
[1746422046335,0.2119368,94363.0,94360.0,0.0831856]
[1746422046632,0.3079368,94363.0,94360.0,0.0831856]
[1746422047128,0.3079368,94363.0,94311.0,0.16117189]
[1746422047334,0.2119526,94356.0,94340.0,0.0529969]
[1746422047631,0.2119526,94356.0,94347.0,0.2737718]
[1746422048333,0.2731526,94356.0,94347.0,0.2737718]
[1746422048629,0.2731526,94356.0,94347.0,0.2737715]
[1746422049329,0.2731526,94356.0,94355.0,0.00205982]
[1746422050726,0.579984,94356.0,94344.0,0.00158995]
[1746422050924,0.579984,94356.0,94327.0,0.0545944]
[1746422050925,0.2120155,94328.0,94327.0,0.0015902]
[1746422051134,0.2764955,94328.0,94327.0,0.0015902]
[1746422051337,0.2120155,94328.0,94327.0,0.0015902]
[1746422051635,0.2764955,94328.0,94327.0,0.0015902]
[1746422051836,0.3045955,94328.0,94327.0,0.0644902]
[1746422052032,0.3375955,94328.0,94327.0,0.2765079]
[1746422052730,0.21202,94326.0,94325.0,0.00106016]
[1746422053233,0.21202,94326.0,94325.0,0.33308236]
[1746422054337,0.21202,94326.0,94325.0,0.00106016]
[1746422054537,0.21202,94326.0,94325.0,0.21308236]
[1746422055327,0.21302,94326.0,94325.0,0.21308236]
[1746422055732,0.21302,94326.0,94325.0,0.21423128]
[1746422056040,0.21202,94326.0,94325.0,0.21423128]
[1746422056244,0.21302,94326.0,94325.0,0.33423128]
[1746422056933,0.001,94326.0,94325.0,0.33467902]
[1746422057243,0.001,94326.0,94325.0,0.75887902]
[1746422057443,0.06548,94326.0,94325.0,0.75932676]
[1746422057939,0.2775,94326.0,94325.0,0.12310456]
[1746422058140,0.6883,94326.0,94325.0,0.21512676]
[1746422058341,0.6883,94326.0,94325.0,0.00310456]
[1746422058645,0.6373,94326.0,94325.0,0.00410456]